[Event "Titled Tuesday Blitz June 20 Early 2023"]
[White "Gyulamiryan-koryun"]
[Black "Matveeva, Olga"]
[BlackFideId "24107018"]
[WhiteElo "1717"]
[BlackElo "2009"]
[Result "1/2-1/2"]
[Round "4"]
[TimeControl "180+2"]
[Date "2023.06.20"]
[WhiteClock "0:00:17"]
[BlackClock "0:00:07"]
[Board "198"]

1. d4 {[%clk 0:03:00]}  Nf6 {[%clk 0:02:58]} 2. c4 {[%clk 0:02:58]}  e6 {[%clk 0:02:59]} 3. Nf3 {[%clk 0:02:58]}  Bb4+ {[%clk 0:02:58]} 4. Bd2 {[%clk 0:02:57]}  Qe7 {[%clk 0:02:58]} 5. g3 {[%clk 0:02:56]}  O-O {[%clk 0:02:57]} 6. Bg2 {[%clk 0:02:56]}  Nc6 {[%clk 0:02:57]} 7. O-O {[%clk 0:02:55]}  Bxd2 {[%clk 0:02:53]} 8. Nbxd2 {[%clk 0:02:54]}  d6 {[%clk 0:02:46]} 9. e4 {[%clk 0:02:54]}  e5 {[%clk 0:02:45]} 10. d5 {[%clk 0:02:49]}  Nb8 {[%clk 0:02:43]} 11. b4 {[%clk 0:02:46]}  a5 {[%clk 0:02:42]} 12. a3 {[%clk 0:02:46]}  Bg4 {[%clk 0:02:41]} 13. Qc2 {[%clk 0:02:44]}  Bxf3 {[%clk 0:02:36]} 14. Bxf3 {[%clk 0:02:39]}  Nbd7 {[%clk 0:02:34]} 15. Rfc1 {[%clk 0:02:37]}  b6 {[%clk 0:02:32]} 16. Nb3 {[%clk 0:02:33]}  axb4 {[%clk 0:02:16]} 17. axb4 {[%clk 0:02:33]}  g6 {[%clk 0:02:14]} 18. h4 {[%clk 0:01:59]}  h5 {[%clk 0:02:13]} 19. c5 {[%clk 0:01:50]}  bxc5 {[%clk 0:02:03]} 20. bxc5 {[%clk 0:01:48]}  dxc5 {[%clk 0:02:01]} 21. Rxa8 {[%clk 0:01:45]}  Rxa8 {[%clk 0:02:01]} 22. Nxc5 {[%clk 0:01:45]}  Ra3 {[%clk 0:01:44]} 23. Kg2 {[%clk 0:01:43]}  Ne8 {[%clk 0:01:23]} 24. Nxd7 {[%clk 0:01:36]}  Qxd7 {[%clk 0:01:24]} 25. Qc5 {[%clk 0:01:36]}  Ra2 {[%clk 0:00:45]} 26. Bd1 {[%clk 0:01:15]}  Kg7 {[%clk 0:00:34]} 27. Bb3 {[%clk 0:01:14]}  Rb2 {[%clk 0:00:31]} 28. Qc3 {[%clk 0:01:13]}  Re2 {[%clk 0:00:28]} 29. Qxe5+ {[%clk 0:01:12]}  f6 {[%clk 0:00:24]} 30. Qd4 {[%clk 0:01:01]}  Qg4 {[%clk 0:00:23]} 31. Bc2 {[%clk 0:00:38]}  Nd6 {[%clk 0:00:20]} 32. Bd3 {[%clk 0:00:35]}  Ra2 {[%clk 0:00:12]} 33. Rxc7+ {[%clk 0:00:35]}  Kh6 {[%clk 0:00:12]} 34. Qxf6 {[%clk 0:00:33]}  Rxf2+ {[%clk 0:00:09]} 35. Kxf2 {[%clk 0:00:30]}  Nxe4+ {[%clk 0:00:08]} 36. Bxe4 {[%clk 0:00:30]}  Qe2+ {[%clk 0:00:07]} 37. Kg1 {[%clk 0:00:19]}  Qg2+ {[%clk 0:00:07]} 38. Bxg2 {[%clk 0:00:17]} 1/2-1/2


[Site "https://www.chess.com"]

[Event "Titled Tuesday Blitz June 20 Early 2023"]
[White "Cheng, Xiao"]
[Black "luachess1"]
[WhiteFideId "2022915"]
[WhiteElo "2435"]
[BlackElo "1618"]
[Result "1-0"]
[Round "4"]
[TimeControl "180+2"]
[Date "2023.06.20"]
[WhiteClock "0:00:49"]
[BlackClock "0:00:05"]
[Board "199"]

1. e4 {[%clk 0:03:00]}  c5 {[%clk 0:02:59]} 2. c3 {[%clk 0:02:59]}  Nc6 {[%clk 0:02:59]} 3. d4 {[%clk 0:02:58]}  cxd4 {[%clk 0:03:00]} 4. cxd4 {[%clk 0:02:59]}  d5 {[%clk 0:02:59]} 5. exd5 {[%clk 0:02:58]}  Qxd5 {[%clk 0:03:00]} 6. Nf3 {[%clk 0:02:58]}  Qd8 {[%clk 0:02:56]} 7. Nc3 {[%clk 0:02:57]}  e6 {[%clk 0:02:55]} 8. Bd3 {[%clk 0:02:55]}  Nf6 {[%clk 0:02:56]} 9. O-O {[%clk 0:02:56]}  Be7 {[%clk 0:02:54]} 10. Bg5 {[%clk 0:02:55]}  O-O {[%clk 0:02:53]} 11. a3 {[%clk 0:02:55]}  h6 {[%clk 0:02:50]} 12. Bh4 {[%clk 0:02:54]}  a6 {[%clk 0:02:46]} 13. Bc2 {[%clk 0:02:54]}  Nd5 {[%clk 0:02:35]} 14. Qd3 {[%clk 0:02:47]}  f5 {[%clk 0:02:00]} 15. Bxe7 {[%clk 0:02:30]}  Qxe7 {[%clk 0:01:42]} 16. Nxd5 {[%clk 0:02:26]}  exd5 {[%clk 0:01:43]} 17. Rfe1 {[%clk 0:02:25]}  Qd6 {[%clk 0:01:29]} 18. b4 {[%clk 0:02:17]}  b5 {[%clk 0:01:09]} 19. Bb3 {[%clk 0:02:15]}  Be6 {[%clk 0:01:03]} 20. Ne5 {[%clk 0:02:02]}  Rac8 {[%clk 0:00:48]} 21. Rac1 {[%clk 0:01:46]}  Nxe5 {[%clk 0:00:48]} 22. dxe5 {[%clk 0:01:08]}  Rxc1 {[%clk 0:00:43]} 23. Rxc1 {[%clk 0:01:09]}  Qxe5 {[%clk 0:00:42]} 24. h3 {[%clk 0:01:05]}  Qe4 {[%clk 0:00:39]} 25. Qd2 {[%clk 0:01:03]}  f4 {[%clk 0:00:28]} 26. Re1 {[%clk 0:01:02]}  Qf5 {[%clk 0:00:11]} 27. Rxe6 {[%clk 0:01:00]}  Rf6 {[%clk 0:00:10]} 28. Qxd5 {[%clk 0:00:51]}  Qb1+ {[%clk 0:00:05]} 29. Re1+ {[%clk 0:00:49]} 1-0


[Site "https://www.chess.com"]

[Event "Titled Tuesday Blitz June 20 Early 2023"]
[White "Matyukov, Petr"]
[Black "Kuzmin, Ilya"]
[WhiteFideId "4103688"]
[BlackFideId "4153863"]
[WhiteElo "2278"]
[BlackElo "2093"]
[Result "0-1"]
[Round "4"]
[TimeControl "180+2"]
[Date "2023.06.20"]
[WhiteClock "0:00:13"]
[BlackClock "0:01:35"]
[Board "203"]

1. d4 {[%clk 0:03:00]}  Nf6 {[%clk 0:03:00]} 2. c4 {[%clk 0:03:00]}  c5 {[%clk 0:03:00]} 3. d5 {[%clk 0:03:00]}  b5 {[%clk 0:03:00]} 4. cxb5 {[%clk 0:03:00]}  a6 {[%clk 0:03:01]} 5. bxa6 {[%clk 0:02:59]}  e6 {[%clk 0:03:01]} 6. Nc3 {[%clk 0:02:55]}  Nxd5 {[%clk 0:03:00]} 7. Nxd5 {[%clk 0:02:56]}  exd5 {[%clk 0:03:00]} 8. Qxd5 {[%clk 0:02:50]}  Nc6 {[%clk 0:03:00]} 9. Nf3 {[%clk 0:02:44]}  Be7 {[%clk 0:02:59]} 10. e4 {[%clk 0:02:43]}  O-O {[%clk 0:02:59]} 11. Bc4 {[%clk 0:02:30]}  Bxa6 {[%clk 0:02:58]} 12. Bxa6 {[%clk 0:02:23]}  Qa5+ {[%clk 0:02:58]} 13. Bd2 {[%clk 0:02:09]}  Qxa6 {[%clk 0:02:57]} 14. Bc3 {[%clk 0:02:08]}  Nb4 {[%clk 0:02:55]} 15. Qd2 {[%clk 0:01:34]}  Nd3+ {[%clk 0:02:49]} 16. Kd1 {[%clk 0:01:33]}  Qa4+ {[%clk 0:02:28]} 17. Ke2 {[%clk 0:01:21]}  Qxe4+ {[%clk 0:02:15]} 18. Qe3 {[%clk 0:01:08]}  Nf4+ {[%clk 0:02:10]} 19. Kf1 {[%clk 0:00:56]}  Qc4+ {[%clk 0:01:56]} 20. Kg1 {[%clk 0:00:54]}  Ne2+ {[%clk 0:01:53]} 21. Kf1 {[%clk 0:00:54]}  Nxc3+ {[%clk 0:01:50]} 22. Ke1 {[%clk 0:00:49]}  Nd5 {[%clk 0:01:40]} 23. Qd2 {[%clk 0:00:23]}  Bf6 {[%clk 0:01:36]} 24. Qc3 {[%clk 0:00:20]}  Nxc3 {[%clk 0:01:36]} 25. Rc1 {[%clk 0:00:13]}  Qe2# {[%clk 0:01:35]} 0-1


[Site "https://www.chess.com"]

[Event "Titled Tuesday Blitz June 20 Early 2023"]
[White "Ruge, Edison"]
[Black "Lalanne, Pablo"]
[WhiteFideId "4401000"]
[BlackFideId "112151"]
[WhiteElo "2175"]
[BlackElo "2120"]
[Result "1/2-1/2"]
[Round "4"]
[TimeControl "180+2"]
[Date "2023.06.20"]
[WhiteClock "0:00:06"]
[BlackClock "0:00:08"]
[Board "205"]

1. e4 {[%clk 0:02:59]}  e5 {[%clk 0:02:58]} 2. Nf3 {[%clk 0:02:59]}  Nc6 {[%clk 0:02:58]} 3. Bb5 {[%clk 0:03:00]}  a6 {[%clk 0:02:58]} 4. Ba4 {[%clk 0:03:00]}  Nf6 {[%clk 0:02:58]} 5. Qe2 {[%clk 0:03:01]}  b5 {[%clk 0:02:55]} 6. Bb3 {[%clk 0:03:02]}  Bc5 {[%clk 0:02:47]} 7. a4 {[%clk 0:03:03]}  Rb8 {[%clk 0:02:45]} 8. axb5 {[%clk 0:03:02]}  axb5 {[%clk 0:02:46]} 9. Nc3 {[%clk 0:03:03]}  b4 {[%clk 0:02:36]} 10. Nd5 {[%clk 0:02:10]}  O-O {[%clk 0:02:29]} 11. d3 {[%clk 0:02:08]}  h6 {[%clk 0:02:30]} 12. h3 {[%clk 0:02:08]}  d6 {[%clk 0:02:22]} 13. Be3 {[%clk 0:02:08]}  Bxe3 {[%clk 0:02:16]} 14. fxe3 {[%clk 0:02:07]}  Nxd5 {[%clk 0:02:13]} 15. Bxd5 {[%clk 0:02:04]}  Ne7 {[%clk 0:02:13]} 16. Bb3 {[%clk 0:02:02]}  Kh7 {[%clk 0:02:03]} 17. O-O {[%clk 0:02:02]}  f5 {[%clk 0:02:03]} 18. Ng5+ {[%clk 0:01:47]}  Kg6 {[%clk 0:01:46]} 19. Ne6 {[%clk 0:01:41]}  Bxe6 {[%clk 0:01:46]} 20. Bxe6 {[%clk 0:01:41]}  fxe4 {[%clk 0:01:33]} 21. Qg4+ {[%clk 0:01:40]}  Kh7 {[%clk 0:01:33]} 22. Qxe4+ {[%clk 0:01:41]}  Kh8 {[%clk 0:01:32]} 23. Rxf8+ {[%clk 0:01:37]}  Qxf8 {[%clk 0:01:32]} 24. Rf1 {[%clk 0:01:37]}  Qe8 {[%clk 0:01:30]} 25. Rf7 {[%clk 0:01:26]}  c6 {[%clk 0:00:51]} 26. Qh4 {[%clk 0:01:07]}  Ng6 {[%clk 0:00:43]} 27. Qg4 {[%clk 0:01:00]}  Kh7 {[%clk 0:00:36]} 28. Ra7 {[%clk 0:00:51]}  Qf8 {[%clk 0:00:29]} 29. Rf7 {[%clk 0:00:28]}  Qe8 {[%clk 0:00:29]} 30. h4 {[%clk 0:00:28]}  Qg8 {[%clk 0:00:11]} 31. h5 {[%clk 0:00:27]}  Nf8 {[%clk 0:00:11]} 32. Bf5+ {[%clk 0:00:21]}  Kh8 {[%clk 0:00:11]} 33. Rc7 {[%clk 0:00:18]}  Nh7 {[%clk 0:00:07]} 34. Be6 {[%clk 0:00:15]}  Qf8 {[%clk 0:00:06]} 35. Rf7 {[%clk 0:00:15]}  Qg8 {[%clk 0:00:06]} 36. Re7 {[%clk 0:00:13]}  Qf8 {[%clk 0:00:07]} 37. Rf7 {[%clk 0:00:12]}  Qg8 {[%clk 0:00:07]} 38. Qg6 {[%clk 0:00:13]}  Ng5 {[%clk 0:00:06]} 39. Rb7 {[%clk 0:00:06]}  Nxe6 {[%clk 0:00:05]} 40. Rxb8 {[%clk 0:00:06]}  Qxb8 {[%clk 0:00:06]} 41. Qxe6 {[%clk 0:00:06]}  b3 {[%clk 0:00:06]} 42. c4 {[%clk 0:00:06]}  Qd8 {[%clk 0:00:05]} 43. d4 {[%clk 0:00:06]}  exd4 {[%clk 0:00:05]} 44. exd4 {[%clk 0:00:06]}  Kh7 {[%clk 0:00:05]} 45. Qg6+ {[%clk 0:00:04]}  Kh8 {[%clk 0:00:05]} 46. d5 {[%clk 0:00:05]}  cxd5 {[%clk 0:00:05]} 47. cxd5 {[%clk 0:00:06]}  Qb6+ {[%clk 0:00:05]} 48. Kh2 {[%clk 0:00:06]}  Qc5 {[%clk 0:00:06]} 49. Qe8+ {[%clk 0:00:05]}  Kh7 {[%clk 0:00:07]} 50. Qe4+ {[%clk 0:00:06]}  Kh8 {[%clk 0:00:07]} 51. Qe8+ {[%clk 0:00:06]}  Kh7 {[%clk 0:00:07]} 52. Qg6+ {[%clk 0:00:06]}  Kh8 {[%clk 0:00:08]} 53. Qe8+ {[%clk 0:00:06]} 1/2-1/2


[Site "https://www.chess.com"]

[Event "Titled Tuesday Blitz June 20 Early 2023"]
[White "le-castor-faineant"]
[Black "sebastianmarinp"]
[WhiteElo "2148"]
[BlackElo "2375"]
[Result "0-1"]
[Round "4"]
[TimeControl "180+2"]
[Date "2023.06.20"]
[WhiteClock "0:01:03"]
[BlackClock "0:00:13"]
[Board "206"]

1. e4 {[%clk 0:02:55]}  e5 {[%clk 0:02:58]} 2. Nf3 {[%clk 0:02:55]}  Nc6 {[%clk 0:02:59]} 3. Bb5 {[%clk 0:02:52]}  a6 {[%clk 0:02:59]} 4. Ba4 {[%clk 0:02:52]}  Nf6 {[%clk 0:02:57]} 5. Qe2 {[%clk 0:02:52]}  b5 {[%clk 0:02:53]} 6. Bb3 {[%clk 0:02:48]}  Bc5 {[%clk 0:02:52]} 7. a4 {[%clk 0:02:33]}  O-O {[%clk 0:02:42]} 8. axb5 {[%clk 0:02:33]}  Nd4 {[%clk 0:02:39]} 9. Nxd4 {[%clk 0:02:32]}  exd4 {[%clk 0:02:40]} 10. d3 {[%clk 0:02:30]}  d5 {[%clk 0:02:32]} 11. O-O {[%clk 0:02:25]}  dxe4 {[%clk 0:02:30]} 12. dxe4 {[%clk 0:02:25]}  Bb7 {[%clk 0:02:24]} 13. bxa6 {[%clk 0:02:23]}  Bxe4 {[%clk 0:02:22]} 14. Bg5 {[%clk 0:02:23]}  Re8 {[%clk 0:02:18]} 15. Qc4 {[%clk 0:02:02]}  Qd6 {[%clk 0:01:52]} 16. Qxf7+ {[%clk 0:02:00]}  Kh8 {[%clk 0:01:51]} 17. Nd2 {[%clk 0:01:55]}  Bg6 {[%clk 0:01:43]} 18. Qc4 {[%clk 0:01:53]}  Ng4 {[%clk 0:01:32]} 19. g3 {[%clk 0:01:44]}  Qe5 {[%clk 0:00:49]} 20. Nf3 {[%clk 0:01:35]}  Qf5 {[%clk 0:00:39]} 21. Qd5 {[%clk 0:01:30]}  Qf8 {[%clk 0:00:20]} 22. h3 {[%clk 0:01:23]}  Be4 {[%clk 0:00:14]} 23. Qc4 {[%clk 0:01:03]}  Qxf3 {[%clk 0:00:13]} 0-1


[Site "https://www.chess.com"]

[Event "Titled Tuesday Blitz June 20 Early 2023"]
[White "Cardenas Carbajal, Nilson"]
[Black "Guha, Eshan"]
[WhiteFideId "8401128"]
[BlackFideId "30958628"]
[WhiteElo "1972"]
[BlackElo "2371"]
[Result "0-1"]
[Round "4"]
[TimeControl "180+2"]
[Date "2023.06.20"]
[WhiteClock "0:00:00"]
[BlackClock "0:00:18"]
[Board "207"]

1. e4 {[%clk 0:03:00]}  c5 {[%clk 0:02:59]} 2. d4 {[%clk 0:03:00]}  cxd4 {[%clk 0:02:59]} 3. c3 {[%clk 0:03:00]}  dxc3 {[%clk 0:03:00]} 4. Nxc3 {[%clk 0:03:00]}  Nc6 {[%clk 0:02:59]} 5. Nf3 {[%clk 0:03:00]}  d6 {[%clk 0:03:00]} 6. Bc4 {[%clk 0:03:01]}  e6 {[%clk 0:03:00]} 7. O-O {[%clk 0:03:00]}  Nf6 {[%clk 0:03:00]} 8. Qe2 {[%clk 0:02:59]}  Be7 {[%clk 0:03:00]} 9. Rd1 {[%clk 0:02:59]}  e5 {[%clk 0:02:53]} 10. Be3 {[%clk 0:02:23]}  O-O {[%clk 0:02:52]} 11. Rac1 {[%clk 0:02:20]}  Be6 {[%clk 0:02:52]} 12. Bb5 {[%clk 0:02:17]}  Bd7 {[%clk 0:02:47]} 13. Bxc6 {[%clk 0:01:43]}  bxc6 {[%clk 0:02:47]} 14. Bg5 {[%clk 0:01:38]}  Bg4 {[%clk 0:02:23]} 15. Qe3 {[%clk 0:01:23]}  Bxf3 {[%clk 0:02:20]} 16. Qxf3 {[%clk 0:01:21]}  h6 {[%clk 0:02:20]} 17. Be3 {[%clk 0:01:05]}  Qb8 {[%clk 0:02:15]} 18. b3 {[%clk 0:01:00]}  Qb7 {[%clk 0:02:09]} 19. Ne2 {[%clk 0:00:59]}  Kh7 {[%clk 0:02:06]} 20. Ng3 {[%clk 0:00:58]}  g6 {[%clk 0:02:05]} 21. h4 {[%clk 0:00:37]}  h5 {[%clk 0:02:02]} 22. Bg5 {[%clk 0:00:33]}  Ng4 {[%clk 0:01:57]} 23. Nxh5 {[%clk 0:00:18]}  gxh5 {[%clk 0:01:37]} 24. Qf5+ {[%clk 0:00:17]}  Kg7 {[%clk 0:01:17]} 25. Rd3 {[%clk 0:00:12]}  Rh8 {[%clk 0:00:52]} 26. Rg3 {[%clk 0:00:11]}  Bxg5 {[%clk 0:00:45]} 27. Qxg5+ {[%clk 0:00:09]}  Kf8 {[%clk 0:00:45]} 28. f3 {[%clk 0:00:08]}  Qb6+ {[%clk 0:00:32]} 29. Kh1 {[%clk 0:00:05]}  Qf2 {[%clk 0:00:18]} 30. Rxg4 {[%clk 0:00:02]}  hxg4 {[%clk 0:00:18]} 31. Qxg4 {[%clk 0:00:00]}  Rxh4+ {[%clk 0:00:18]} 0-1


[Site "https://www.chess.com"]

[Event "Titled Tuesday Blitz June 20 Early 2023"]
[White "Daianu, Cristian-Clement"]
[Black "Skiadopoulos, Nikolaos"]
[WhiteFideId "1208926"]
[BlackFideId "4200772"]
[WhiteElo "2097"]
[BlackElo "2022"]
[Result "1-0"]
[Round "4"]
[TimeControl "180+2"]
[Date "2023.06.20"]
[WhiteClock "0:00:15"]
[BlackClock "0:00:00"]
[Board "209"]

1. d4 {[%clk 0:03:00]}  Nf6 {[%clk 0:02:59]} 2. Nf3 {[%clk 0:02:38]}  g6 {[%clk 0:02:58]} 3. Bf4 {[%clk 0:02:37]}  Bg7 {[%clk 0:02:56]} 4. e3 {[%clk 0:02:37]}  d6 {[%clk 0:02:55]} 5. h3 {[%clk 0:02:32]}  Nbd7 {[%clk 0:02:52]} 6. Be2 {[%clk 0:02:32]}  c5 {[%clk 0:02:51]} 7. c3 {[%clk 0:02:30]}  O-O {[%clk 0:02:38]} 8. O-O {[%clk 0:02:28]}  cxd4 {[%clk 0:02:34]} 9. cxd4 {[%clk 0:02:28]}  Re8 {[%clk 0:02:27]} 10. Nc3 {[%clk 0:02:27]}  Qa5 {[%clk 0:02:21]} 11. a3 {[%clk 0:02:22]}  e5 {[%clk 0:02:19]} 12. dxe5 {[%clk 0:02:21]}  dxe5 {[%clk 0:02:19]} 13. Bh2 {[%clk 0:02:22]}  e4 {[%clk 0:02:03]} 14. Nd4 {[%clk 0:02:20]}  Qb6 {[%clk 0:01:54]} 15. b4 {[%clk 0:02:18]}  Ne5 {[%clk 0:01:51]} 16. Rc1 {[%clk 0:02:15]}  Bd7 {[%clk 0:01:34]} 17. Na4 {[%clk 0:02:13]}  Bxa4 {[%clk 0:01:34]} 18. Qxa4 {[%clk 0:02:14]}  Nd3 {[%clk 0:01:27]} 19. Rfd1 {[%clk 0:02:09]}  Nxc1 {[%clk 0:01:26]} 20. Rxc1 {[%clk 0:02:09]}  Rec8 {[%clk 0:01:25]} 21. Bc4 {[%clk 0:02:00]}  Qd8 {[%clk 0:01:11]} 22. Qb3 {[%clk 0:02:00]}  Qe7 {[%clk 0:01:08]} 23. Nb5 {[%clk 0:01:42]}  Ne8 {[%clk 0:01:08]} 24. Rf1 {[%clk 0:01:09]}  a6 {[%clk 0:01:04]} 25. Nd4 {[%clk 0:01:09]}  b5 {[%clk 0:01:03]} 26. Bd5 {[%clk 0:01:09]}  Ra7 {[%clk 0:00:52]} 27. Nc6 {[%clk 0:01:09]}  Rxc6 {[%clk 0:00:52]} 28. Bxc6 {[%clk 0:01:09]}  Nd6 {[%clk 0:00:50]} 29. Bd5 {[%clk 0:01:06]}  Nf5 {[%clk 0:00:42]} 30. Qc2 {[%clk 0:00:57]}  h5 {[%clk 0:00:32]} 31. Bxe4 {[%clk 0:00:43]}  Nd6 {[%clk 0:00:32]} 32. Bd5 {[%clk 0:00:42]}  Rc7 {[%clk 0:00:29]} 33. Qb3 {[%clk 0:00:37]}  Be5 {[%clk 0:00:28]} 34. Bxe5 {[%clk 0:00:28]}  Qxe5 {[%clk 0:00:28]} 35. Re1 {[%clk 0:00:28]}  Rc3 {[%clk 0:00:24]} 36. Qd1 {[%clk 0:00:28]}  Kg7 {[%clk 0:00:20]} 37. a4 {[%clk 0:00:22]}  bxa4 {[%clk 0:00:19]} 38. f4 {[%clk 0:00:23]}  Qf6 {[%clk 0:00:11]} 39. Qxa4 {[%clk 0:00:22]}  Nf5 {[%clk 0:00:04]} 40. Bf3 {[%clk 0:00:14]}  Nxe3 {[%clk 0:00:00]} 41. Qd7 {[%clk 0:00:15]} 1-0


[Site "https://www.chess.com"]

[Event "Titled Tuesday Blitz June 20 Early 2023"]
[White "Makhmudov, Shukhrat"]
[Black "Politov, Pavel Y."]
[WhiteFideId "14200775"]
[BlackFideId "24110515"]
[WhiteElo "2135"]
[BlackElo "2066"]
[Result "1-0"]
[Round "4"]
[TimeControl "180+2"]
[Date "2023.06.20"]
[WhiteClock "0:01:19"]
[BlackClock "0:00:00"]
[Board "213"]

1. Nf3 {[%clk 0:03:00]}  d5 {[%clk 0:02:50]} 2. d4 {[%clk 0:02:57]}  Nf6 {[%clk 0:02:49]} 3. e3 {[%clk 0:02:56]}  c5 {[%clk 0:02:46]} 4. b3 {[%clk 0:02:56]}  Nc6 {[%clk 0:02:45]} 5. Bb2 {[%clk 0:02:56]}  cxd4 {[%clk 0:02:44]} 6. exd4 {[%clk 0:02:56]}  e6 {[%clk 0:02:45]} 7. Bd3 {[%clk 0:02:56]}  Bd6 {[%clk 0:02:45]} 8. a3 {[%clk 0:02:56]}  O-O {[%clk 0:02:45]} 9. O-O {[%clk 0:02:56]}  a6 {[%clk 0:02:40]} 10. Nbd2 {[%clk 0:02:56]}  Bd7 {[%clk 0:02:38]} 11. Ne5 {[%clk 0:02:56]}  Qc7 {[%clk 0:02:34]} 12. f4 {[%clk 0:02:56]}  Qb6 {[%clk 0:02:26]} 13. Kh1 {[%clk 0:02:55]}  Nxd4 {[%clk 0:02:16]} 14. Nxd7 {[%clk 0:02:48]}  Nxd7 {[%clk 0:02:14]} 15. Nc4 {[%clk 0:02:47]}  dxc4 {[%clk 0:02:03]} 16. Bxd4 {[%clk 0:02:46]}  Qc7 {[%clk 0:01:51]} 17. Bxc4 {[%clk 0:02:40]}  Bxf4 {[%clk 0:01:50]} 18. Qh5 {[%clk 0:02:35]}  Be5 {[%clk 0:01:43]} 19. Rad1 {[%clk 0:02:27]}  Bxd4 {[%clk 0:01:37]} 20. Rxd4 {[%clk 0:02:27]}  Qe5 {[%clk 0:01:37]} 21. Qd1 {[%clk 0:02:20]}  Nf6 {[%clk 0:01:33]} 22. Bd3 {[%clk 0:02:12]}  Rfd8 {[%clk 0:01:16]} 23. Rxd8+ {[%clk 0:02:11]}  Rxd8 {[%clk 0:01:14]} 24. Bxh7+ {[%clk 0:02:11]}  Kxh7 {[%clk 0:01:12]} 25. Qxd8 {[%clk 0:02:11]}  Ng4 {[%clk 0:00:50]} 26. Qh4+ {[%clk 0:02:10]}  Nh6 {[%clk 0:00:50]} 27. h3 {[%clk 0:02:07]}  Qe2 {[%clk 0:00:45]} 28. Rxf7 {[%clk 0:01:50]}  Qd1+ {[%clk 0:00:30]} 29. Kh2 {[%clk 0:01:50]}  Qd6+ {[%clk 0:00:28]} 30. Qf4 {[%clk 0:01:42]}  Qc6 {[%clk 0:00:16]} 31. Rc7 {[%clk 0:01:34]}  Qe8 {[%clk 0:00:13]} 32. Qe5 {[%clk 0:01:30]}  Nf7 {[%clk 0:00:11]} 33. Qe4+ {[%clk 0:01:27]}  Kg8 {[%clk 0:00:09]} 34. Qxb7 {[%clk 0:01:26]}  Qd8 {[%clk 0:00:04]} 35. Rxf7 {[%clk 0:01:23]}  Qd6+ {[%clk 0:00:04]} 36. Kg1 {[%clk 0:01:22]}  Qd1+ {[%clk 0:00:03]} 37. Rf1 {[%clk 0:01:22]}  Qd4+ {[%clk 0:00:03]} 38. Kh1 {[%clk 0:01:22]}  Qd8 {[%clk 0:00:00]} 39. Qf7+ {[%clk 0:01:19]} 1-0


[Site "https://www.chess.com"]

[Event "Titled Tuesday Blitz June 20 Early 2023"]
[White "Zia, Tahsin Tajwar"]
[Black "campochess"]
[WhiteFideId "10211888"]
[WhiteElo "2062"]
[BlackElo "2194"]
[Result "1-0"]
[Round "4"]
[TimeControl "180+2"]
[Date "2023.06.20"]
[WhiteClock "0:00:02"]
[BlackClock "0:00:00"]
[Board "214"]

1. d4 {[%clk 0:02:58]}  Nc6 {[%clk 0:02:59]} 2. e4 {[%clk 0:02:57]}  e5 {[%clk 0:02:56]} 3. d5 {[%clk 0:02:53]}  Nce7 {[%clk 0:02:56]} 4. c4 {[%clk 0:02:53]}  Ng6 {[%clk 0:02:56]} 5. Nc3 {[%clk 0:02:53]}  Bc5 {[%clk 0:02:55]} 6. Be2 {[%clk 0:02:52]}  d6 {[%clk 0:02:54]} 7. Nf3 {[%clk 0:02:47]}  a6 {[%clk 0:02:53]} 8. O-O {[%clk 0:02:48]}  Nf6 {[%clk 0:02:53]} 9. Ne1 {[%clk 0:02:48]}  O-O {[%clk 0:02:52]} 10. Nd3 {[%clk 0:02:49]}  Ba7 {[%clk 0:02:51]} 11. h3 {[%clk 0:02:49]}  c6 {[%clk 0:02:41]} 12. Kh1 {[%clk 0:02:43]}  Bd7 {[%clk 0:02:40]} 13. Qc2 {[%clk 0:02:32]}  Rc8 {[%clk 0:02:37]} 14. Qb3 {[%clk 0:02:26]}  b5 {[%clk 0:02:36]} 15. dxc6 {[%clk 0:02:19]}  bxc4 {[%clk 0:02:26]} 16. Qxc4 {[%clk 0:02:17]}  Rxc6 {[%clk 0:02:26]} 17. Qb3 {[%clk 0:02:14]}  Qb8 {[%clk 0:02:21]} 18. Qd1 {[%clk 0:02:09]}  Rd8 {[%clk 0:02:16]} 19. Bg5 {[%clk 0:02:04]}  Be6 {[%clk 0:02:09]} 20. a3 {[%clk 0:01:58]}  Rxc3 {[%clk 0:02:00]} 21. bxc3 {[%clk 0:01:56]}  Nxe4 {[%clk 0:02:00]} 22. f4 {[%clk 0:01:44]}  Nxc3 {[%clk 0:01:56]} 23. Qd2 {[%clk 0:01:39]}  Nxe2 {[%clk 0:01:55]} 24. Qxe2 {[%clk 0:01:40]}  exf4 {[%clk 0:01:54]} 25. Nxf4 {[%clk 0:01:41]}  Nxf4 {[%clk 0:01:53]} 26. Bxf4 {[%clk 0:01:39]}  Bc5 {[%clk 0:01:47]} 27. Rab1 {[%clk 0:01:34]}  Qa8 {[%clk 0:01:46]} 28. Bg5 {[%clk 0:01:23]}  Rc8 {[%clk 0:01:37]} 29. Rf3 {[%clk 0:01:12]}  Qd5 {[%clk 0:01:33]} 30. Rg3 {[%clk 0:01:06]}  Kh8 {[%clk 0:01:20]} 31. Qh5 {[%clk 0:00:52]}  Qf5 {[%clk 0:01:07]} 32. Re1 {[%clk 0:00:35]}  Bf2 {[%clk 0:00:59]} 33. Rf3 {[%clk 0:00:34]}  Qc5 {[%clk 0:00:46]} 34. Rf1 {[%clk 0:00:22]}  Bd4 {[%clk 0:00:33]} 35. Qh4 {[%clk 0:00:11]}  Be5 {[%clk 0:00:25]} 36. Be3 {[%clk 0:00:07]}  Qc4 {[%clk 0:00:24]} 37. Qe7 {[%clk 0:00:07]}  Qc7 {[%clk 0:00:16]} 38. Qh4 {[%clk 0:00:05]}  f6 {[%clk 0:00:13]} 39. Bf4 {[%clk 0:00:03]}  d5 {[%clk 0:00:12]} 40. Bxe5 {[%clk 0:00:03]}  Qxe5 {[%clk 0:00:12]} 41. Re1 {[%clk 0:00:04]}  Qd6 {[%clk 0:00:12]} 42. Rfe3 {[%clk 0:00:04]}  Bf7 {[%clk 0:00:12]} 43. Qg4 {[%clk 0:00:05]}  h5 {[%clk 0:00:10]} 44. Qxc8+ {[%clk 0:00:05]}  Kh7 {[%clk 0:00:10]} 45. Qf5+ {[%clk 0:00:05]}  Bg6 {[%clk 0:00:09]} 46. Qf3 {[%clk 0:00:06]}  d4 {[%clk 0:00:08]} 47. Re7 {[%clk 0:00:07]}  d3 {[%clk 0:00:07]} 48. Qb7 {[%clk 0:00:07]}  d2 {[%clk 0:00:04]} 49. Rxg7+ {[%clk 0:00:06]}  Kh6 {[%clk 0:00:04]} 50. Rxg6+ {[%clk 0:00:06]}  Kxg6 {[%clk 0:00:04]} 51. Qe4+ {[%clk 0:00:06]}  f5 {[%clk 0:00:03]} 52. Qe6+ {[%clk 0:00:05]}  Kg5 {[%clk 0:00:02]} 53. Qe3+ {[%clk 0:00:04]}  f4 {[%clk 0:00:00]} 54. Qe2 {[%clk 0:00:02]} 1-0


[Site "https://www.chess.com"]

[Event "Titled Tuesday Blitz June 20 Early 2023"]
[White "Martin, Lewis"]
[Black "zano2023"]
[WhiteFideId "410551"]
[WhiteElo "2145"]
[BlackElo "2173"]
[Result "1-0"]
[Round "4"]
[TimeControl "180+2"]
[Date "2023.06.20"]
[WhiteClock "0:01:31"]
[BlackClock "0:01:17"]
[Board "218"]

1. e4 {[%clk 0:03:00]}  e5 {[%clk 0:02:58]} 2. Nf3 {[%clk 0:03:00]}  d6 {[%clk 0:02:58]} 3. d4 {[%clk 0:02:59]}  f5 {[%clk 0:02:58]} 4. exf5 {[%clk 0:02:44]}  e4 {[%clk 0:02:57]} 5. Ng5 {[%clk 0:02:35]}  Bxf5 {[%clk 0:02:57]} 6. c4 {[%clk 0:02:21]}  h6 {[%clk 0:02:55]} 7. Nh3 {[%clk 0:02:11]}  Nf6 {[%clk 0:02:43]} 8. Nf4 {[%clk 0:01:56]}  g5 {[%clk 0:02:33]} 9. Nh5 {[%clk 0:01:53]}  Bg6 {[%clk 0:02:27]} 10. Be2 {[%clk 0:01:51]}  Nbd7 {[%clk 0:02:24]} 11. Nc3 {[%clk 0:01:50]}  c6 {[%clk 0:02:20]} 12. h4 {[%clk 0:01:46]}  gxh4 {[%clk 0:02:03]} 13. Rxh4 {[%clk 0:01:36]}  Nxh5 {[%clk 0:01:52]} 14. Rxh5 {[%clk 0:01:35]}  Bxh5 {[%clk 0:01:48]} 15. Bxh5+ {[%clk 0:01:36]}  Ke7 {[%clk 0:01:45]} 16. Nxe4 {[%clk 0:01:31]}  Nf6 {[%clk 0:01:32]} 17. Nxf6 {[%clk 0:01:30]}  Kxf6 {[%clk 0:01:31]} 18. Qf3+ {[%clk 0:01:31]}  Ke6 {[%clk 0:01:17]} 19. Qf7# {[%clk 0:01:31]} 1-0


[Site "https://www.chess.com"]